Cogmind - Beta 13 X1 @@@ ROGUE MODE // 2023.07.24 @ 00:25:32 Player: Runia Result: Destroyed by D-53 Grenadier with Mini Grenade Launcher Performance ------------- Evolutions (0) 0 Regions Visited (4) 800 Robots Destroyed (21) 105 Value Destroyed (611) 611 Prototype IDs (0) 0 Alien Tech Used (0) 0 Bonus (0) 0 TOTAL SCORE: 1516 Bonus ------- None Cogmind --------- Core Integrity 0/250 Matter 89/300 Energy 250/250 System Corruption 5% Temperature Cool (0) Movement Core (800) Ox15 Location -9/Mines Parts ------- > --- POWER (1) -------- Ion Engine > --- PROPULSION (2) --- Light Treads > --- UTILITY (2) ------ Improved Heat Sink High-capacity Storage Unit > --- WEAPON (2) ------- (None) > --- INVENTORY (20) --- Large Matter Pod (97) System Shield Improved Trap Extractor (0/6) EM Pulse Gun Shock Rifle Pulse Rifle Assault Rifle Light Assault Rifle Light Cannon Grenade Launcher Missile Launcher Mining Laser Peak State ------------ > --- POWER ------------ Light Nuclear Core > --- PROPULSION ------- Light Treads Compact Wheel > --- UTILITY ---------- Improved Heat Sink High-capacity Storage Unit > --- WEAPON ----------- Shock Rifle Shock Rifle > --- INVENTORY -------- Ion Engine Improved Heat Sink Large Matter Pod System Shield Improved Trap Extractor EM Pulse Gun Pulse Rifle Assault Rifle Assault Rifle Assault Rifle Light Assault Rifle Light Cannon Grenade Launcher Improved Grenade Launcher Missile Launcher Mining Laser [Rating: 17] Favorites ----------- Power Ion Engine Engine Ion Engine Power Core Light Nuclear Core Propulsion Light Treads Treads Light Treads Leg Aluminum Leg Wheel Wheel Utility High-capacity Storage Unit Device Improved Heat Sink Storage High-capacity Storage Unit Weapon Assault Rifle Energy Gun Shock Rifle Ballistic Gun Assault Rifle Launcher Grenade Launcher Build | -11 -10 -10 -10 -9 ------- Run | Jun Mat Min Exi Min Slots Evolved . | . . . . . Power . | . . . . . Propulsion . | . . . . . Utility . | . . . . . Weapon . | . . . . . Parts Attached 25 | 2 5 3 . 15 Power 3 | . . . . 3 Engine 2 | . . . . 2 Core 1 | . . . . 1 Reactor . | . . . . . Propulsion 6 | 2 1 . . 3 Treads 4 | 2 . . . 2 Leg . | . . . . . Wheel 2 | . 1 . . 1 Hover . | . . . . . Flight . | . . . . . Utility 5 | . 2 1 . 2 Device 4 | . 1 1 . 2 Storage 1 | . 1 . . . Processor . | . . . . . Hackware . | . . . . . Protection . | . . . . . Artifact . | . . . . . Weapon 11 | . 2 2 . 7 Energy Gun 2 | . . . . 2 Energy Cannon . | . . . . . Ballistic Gun 4 | . 1 1 . 2 Ballistic Cannon . | . . . . . Launcher 5 | . 1 1 . 3 Special Weapon . | . . . . . Impact Weapon . | . . . . . Slashing Weapon . | . . . . . Piercing Weapon . | . . . . . Special Melee Weapon . | . . . . . Unidentified Prototypes . | . . . . . Parts Lost 11 | . . . . 11 Power 1 | . . . . 1 Propulsion 4 | . . . . 4 Utility 2 | . . . . 2 Weapon 4 | . . . . 4 Highest Loss Streak 5 | . . . . 5 To Critical Strikes . | . . . . . Average Slot Usage (%) 97 | . 94 100 100 94 Engine 13 | . 14 14 14 12 Treads 13 | . 14 14 14 11 Wheel 13 | . 13 14 14 14 Device 12 | . 9 14 14 13 Storage 14 | . 14 14 14 14 Energy Gun 2 | . . . . 9 Ballistic Gun 23 | . 28 27 28 10 Launcher 1 | . . . . 6 Naked Turns . | . . . . . Heaviest Build 55 | 14 50 50 50 55 Greatest Support 40 | 40 40 10 10 16 Greatest Overweight (x) 4 | . 4 4 4 4 Average Overweight (x) 3 | . 3 4 4 3 Largest Inventory Capacity 20 | 8 20 20 20 20 Average Capacity 19 | 8 19 20 20 20 Most Carried 19 | 6 10 18 19 19 Average Carried 12 | 4 5 12 18 15 Final Capacity 20 | 8 20 20 20 20 Final Carried 19 | 4 9 18 19 12 Class Distribution -------------------- 100% | Mutant Dominant Class ---------------- Mutant | -10/Materials Mutant | -10/Mines Mutant | -10/Exiles Mutant | -9/Mines Resources | -11 -10 -10 -10 -9 ----------- Run | Jun Mat Min Exi Min Matter Collected 711 | 200 188 68 64 191 Remotely . | . . . . . Salvage Created 692 | . 337 68 . 287 Parts 33 | . 20 4 . 9 Haulers Intercepted . | . . . . . Recyclers Shooed . | . . . . . Parts Field Recycled . | . . . . . Retrieved Matter . | . . . . . Parts Self-Destructed . | . . . . . Prevented . | . . . . . Kills | -11 -10 -10 -10 -9 ------- Run | Jun Mat Min Exi Min Combat Hostiles Destroyed 35 | . 11 2 . 22 Guns 15 | . 9 1 . 5 AOE 20 | . 2 1 . 17 Classes Destroyed 6 | . 4 . . 2 Worker 1 | . . . . 1 Builder 1 | . 1 . . . Mechanic 1 | . 1 . . . Swarmer 3 | . 3 . . . Grunt 15 | . 8 2 . 5 Assembled 17 | . . . . 17 Best Kill Streak 18 | . 7 2 . 18 Combat Bots Only 17 | . 6 2 . 17 Max Kills in Single Turn 3 | . 2 1 . 3 Gunslinging 1 | . 1 . . . Exploded 3 | . 1 1 . 3 Melee . | . . . . . Uniques/NPCs Destroyed . | . . . . . Combat | -11 -10 -10 -10 -9 -------- Run | Jun Mat Min Exi Min Damage Taken 1335 | . 217 84 . 1034 Core 261 | . 53 . . 208 Absorbed by Shields . | . . . . . Core Remaining (%) 100 | 100 . . . . Volleys Fired 76 | . 31 3 . 42 Largest 2 | . 2 2 . 2 Hottest 100 | . 40 40 . 100 Shots Fired 132 | . 59 5 . 68 Gun 112 | . 56 4 . 52 Cannon . | . . . . . Launcher 20 | . 3 1 . 16 Special . | . . . . . Kinetic 90 | . 56 4 . 30 Thermal . | . . . . . Explosive 20 | . 3 1 . 16 Electromagnetic 22 | . . . . 22 Robot Hit Streak 12 | . 10 7 . 12 Robot Miss Streak 4 | . 4 1 . 3 Penetration Max . | . . . . . Secondary Targets 1 | . 1 . . . Max Gunslinging Chain 1 | . 1 . . . Shots Hit Robots 80 | . 37 2 . 41 Core Hits 67 | . 25 3 . 39 Critical Kills 1 | . . 1 . . Critical Parts Destroyed . | . . . . . Critical Strikes 1 | . . 1 . . Destroy 1 | . . 1 . . Melee Attacks . | . . . . . Impact . | . . . . . Slashing . | . . . . . Piercing . | . . . . . Sneak Attacks . | . . . . . Combat Hostiles . | . . . . . Follow-up Attacks . | . . . . . Damage Inflicted 2791 | . 763 94 . 1934 Guns 1057 | . 494 22 . 541 Cannons . | . . . . . Explosions 1734 | . 269 72 . 1393 Melee . | . . . . . Ramming . | . . . . . Kinetic 820 | . 494 22 . 304 Thermal . | . . . . . Explosive 1734 | . 269 72 . 1393 Electromagnetic 237 | . . . . 237 Impact . | . . . . . Slashing . | . . . . . Piercing . | . . . . . Highest Corruption 5 | . . . . 5 Average Corruption 5 | . . . . 5 Corruption Purged . | . . . . . Corruption Blocked . | . . . . . Effects 2 | . . . . 2 Matter Fused 1 | . . . . 1 Data Loss (minor) 1 | . . . . 1 Overload Shots . | . . . . . Overflow Damage 46 | . . . . 46 Projectiles . | . . . . . Explosions 46 | . . . . 46 Melee . | . . . . . Knockbacks . | . . . . . Impact . | . . . . . Kinetic . | . . . . . Secondary . | . . . . . Self-Inflicted Damage 147 | . . 24 . 123 Shots 5 | . . 1 . 4 Rammed . | . . . . . Targets Rammed . | . . . . . Kicked . | . . . . . Crushed . | . . . . . Highest Temperature 39 | . 2 . . 39 Average Temperature 16 | . 2 . . 17 Received Heat Transfer 369 | . 90 24 . 255 Siege Activations . | . . . . . Robots Corrupted . | . . . . . Combat Hostiles . | . . . . . Parts Fried 1 | . . . . 1 Impact Corruptions . | . . . . . Robots Melted . | . . . . . Combat Hostiles . | . . . . . Parts Melted . | . . . . . Heat Transferred . | . . . . . Parts Sabotaged . | . . . . . Parts Stolen . | . . . . . Parts Stripped . | . . . . . Power Chain Reactions . | . . . . . Missiles Intercepted . | . . . . . Alert | -11 -10 -10 -10 -9 ------- Run | Jun Mat Min Exi Min Peak Influence 216 | . 216 115 . 128 Initial 55 | . . 55 . . Average 72 | . 64 80 . 71 Maximum Alert Level 1 | . 1 . . . Low Security (%) 99 | 100 99 100 . 100 Level 1 . | . . . . . Level 2 . | . . . . . Level 3 . | . . . . . Level 4 . | . . . . . Level 5 . | . . . . . High Security . | . . . . . Max Security . | . . . . . Squads Dispatched 2 | . 2 . . . Investigation 2 | . 2 . . . Extermination . | . . . . . Reinforcement . | . . . . . Assault . | . . . . . Garrison . | . . . . . Intercept . | . . . . . Searches Triggered . | . . . . . Construction Impeded . | . . . . . Haulers Reinforced . | . . . . . Active Scanning Responses . | . . . . . Cargo Convoy Interrupts . | . . . . . Stealth | -11 -10 -10 -10 -9 --------- Run | Jun Mat Min Exi Min Distress Signals 2 | . 2 . . . Communications Jammed . | . . . . . Distress Signals . | . . . . . Times Spotted 46 | . 15 2 . 29 Peak Tracking Total 18 | . 4 2 . 18 Tactical Retreats 6 | . . . . 6 Traps | -11 -10 -10 -10 -9 ------- Run | Jun Mat Min Exi Min Traps Triggered . | . . . . . Indirectly . | . . . . . Trap Hack Attempts . | . . . . . Triggered . | . . . . . Disarmed . | . . . . . Reprogrammed . | . . . . . Reused . | . . . . . Traps Extracted . | . . . . . Installed . | . . . . . Triggered . | . . . . . Machines | -11 -10 -10 -10 -9 ---------- Run | Jun Mat Min Exi Min Machines Disabled . | . . . . . Max in Single Turn . | . . . . . Machines Repaired . | . . . . . Machines Sabotaged . | . . . . . Overloaded Fab Kills . | . . . . . Hacking | -11 -10 -10 -10 -9 --------- Run | Jun Mat Min Exi Min Machines Accessed 5 | . 3 1 1 . Terminals 1 | . 1 . . . Fabricators . | . . . . . Repair Stations . | . . . . . Recycling Units 2 | . 2 . . . Scanalyzers . | . . . . . Garrison Access . | . . . . . Total Hacks 6 | . 4 1 1 . Successful 4 | . 2 1 1 . Failed 2 | . 2 . . . Catastrophic 1 | . 1 . . . Database Lockouts . | . . . . . Manual 2 | . 2 . . . Terminals 2 | . 2 . . . Fabricators . | . . . . . Repair Stations . | . . . . . Recycling Units 2 | . 2 . . . Scanalyzers . | . . . . . Garrison Access . | . . . . . Terminal Hacks 2 | . . 1 1 . Record 1 | . . . 1 . Open Door 1 | . . 1 . . Fabricator Hacks . | . . . . . Repair Station Hacks . | . . . . . Recycling Unit Hacks . | . . . . . Scanalyzer . | . . . . . Garrison Access Hacks . | . . . . . Unauthorized Hacks 2 | . 2 . . . Terminals . | . . . . . Fabricators . | . . . . . Repair Stations . | . . . . . Recycling Units 2 | . 2 . . . Tunnel 2 | . 2 . . . Scanalyzers . | . . . . . Garrison Access . | . . . . . Data Cores Recovered . | . . . . . Used . | . . . . . Hacking Detections 1 | . 1 . . . Full Trace Events . | . . . . . Feedback Events . | . . . . . Feedback Blocked . | . . . . . Robot Schematics Acquired . | . . . . . Robots Built . | . . . . . Authchips . | . . . . . Time . | . . . . . Total Robot Build Rating . | . . . . . Part Schematics Acquired . | . . . . . Parts Built . | . . . . . Authchips . | . . . . . Time . | . . . . . Total Part Build Rating . | . . . . . Parts Repaired . | . . . . . Time . | . . . . . Parts Recycled . | . . . . . Recycled Matter . | . . . . . Retrieved Matter . | . . . . . Retrieved Components . | . . . . . Parts Scanalyzed . | . . . . . Part Schematics Acquired . | . . . . . Parts Damaged . | . . . . . Bothacking | -11 -10 -10 -10 -9 ------------ Run | Jun Mat Min Exi Min Used RIF Installer . | . . . . . Robots Hacked . | . . . . . Non-combat . | . . . . . Combat . | . . . . . Robot Hacks Applied . | . . . . . Relay Couplers Released . | . . . . . Fabnet Peak Effective % . | . . . . . Robots Rewired . | . . . . . Allies Hacked . | . . . . . Hacks Repelled . | . . . . . Allies | -11 -10 -10 -10 -9 -------- Run | Jun Mat Min Exi Min Total Allies . | . . . . . Largest Group . | . . . . . Highest-Rated Group . | . . . . . Highest-Rated Ally . | . . . . . Total Orders . | . . . . . Ally Attacks . | . . . . . Total Damage . | . . . . . Kills . | . . . . . Allies Corrupted . | . . . . . Allies Melted . | . . . . . Intel | -11 -10 -10 -10 -9 ------- Run | Jun Mat Min Exi Min Robot Analysis Total . | . . . . . Derelict Logs Recovered 2 | . . 1 . 1 Drone Launches . | . . . . . Drone Recoveries . | . . . . . Exploration | -11 -10 -10 -10 -9 ------------- Run | Jun Mat Min Exi Min Turns Passed 1647 | 7 461 565 210 404 Spaces Moved 798 | 3 249 211 150 185 Core . | . . . . . Treads 10 | 3 7 . . . Legs . | . . . . . Wheels 788 | . 242 211 150 185 Hover . | . . . . . Flight . | . . . . . Fastest Speed 140 | 160 140 140 140 140 Average Speed 141 | 160 140 140 140 144 Slowest Speed 160 | 160 160 140 140 145 Overloaded Moves . | . . . . . Propulsion Burnouts . | . . . . . Robots Hopped . | . . . . . Cave-ins Triggered . | . . . . . Exploration Rate (%) 36 | 2 43 46 49 41 Regions Visited 4 Branch Regions 3 Pre-discovered Areas 3 | . 2 . . 1 Known Exits Taken . | . . . . . Unknown Exits Taken 4 | 1 1 1 1 . Scrap Searched 1 | . . . . 1 Spaces Dug 17 | . . . . 17 Terrain Destroyed 115 | . 17 10 . 88 Melee . | . . . . . Projectile . | . . . . . AOE 115 | . 17 10 . 88 Terrain Rammed . | . . . . . Walls Destroyed . | . . . . . Machines Disabled . | . . . . . Actions | -11 -10 -10 -10 -9 --------- Run | Jun Mat Min Exi Min Total 1180 | 6 300 474 150 250 Wait 262 | . 6 250 . 6 Move 794 | 2 248 210 149 185 Hop . | . . . . . Pick Up 16 | . 7 8 1 . Fast Attach 4 | . 2 . . 2 Attach 9 | 2 . . . 7 Detach . | . . . . . Swap 12 | . 3 3 . 6 Drop 7 | 2 3 . . 2 Fire 76 | . 31 3 . 42 Melee . | . . . . . Ram . | . . . . . Kick . | . . . . . Crush . | . . . . . Escape Stasis . | . . . . . Rewire . | . . . . . Trap . | . . . . . Miscellaneous . | . . . . . Route ------- -11/Junkyard -10/Materials (discovered 2 exits: [*Mat] / *Min) -10/Mines (discovered 2 exits: [*Mat] / *Exi) -10/Exiles -9/Mines History --------- Turn | Location | Event 4 | -11/Junkyard | Discovered new exit (range 0) 8 | -11/Junkyard | Entered Materials 151 | -10/Materials | Discovered new exit (range 15) 316 | -10/Materials | Build established: Mutant 360 | -10/Materials | Discovered new exit (range 12) 469 | -10/Materials | Entered Mines 498 | -10/Mines | Learned Materials emergency access door positions 512 | -10/Mines | Met a Derelict who couldn't figure out how to use a Trap Extractor 948 | -10/Mines | Discovered new exit (range 8) 1028 | -10/Mines | Deemed a non-threat by the Exiles lab entrance 1028 | -10/Mines | Discovered new exit (range 5) 1034 | -10/Mines | Entered Exiles 1034 | -10/Exiles | Found Exiles lab abandoned 1227 | -10/Exiles | Discovered new exit (range 14) 1244 | -10/Exiles | Entered Mines 1353 | -9/Mines | Lost 3 parts (2n1u) 1463 | -9/Mines | Assembled infested the area 1477 | -9/Mines | Core integrity fell below 50% 1495 | -9/Mines | Core integrity fell below 20% 1523 | -9/Mines | Lost 5 parts (1p1n1u2w) 1525 | -9/Mines | Destroyed 17 combat bots 1648 | -9/Mines | Destroyed by D-53 Grenadier with Mini Grenade Launcher Last Messages --------------- 01553_ Found Visual Processing Unit. 01553_ Found Hcp. Storage Unit. 01553_ Found Terrain Scan Processor. 01553_ Found 23 Matter. 01554_ System corrupted: Matter fused (-10). 01554_ Acquired 23 matter. 01556_ Acquired Lgt. Treads. 01589_ A derelict emerges from the shadows: "Are any of them following you? I'm here trying to lose some heat after our second raid on Storage failed. Whatever you do stay away from that place, they've tightened security following our previous successful raids." World map confirmed: -7/Storage. 01591_ BO-CJK(g): "We scattered so the Unaware couldn't effectively use their advantage in numbers, and I suggest you do the same." 01591_ BO-CJK(g) slips back into the shadows. 01620_ System corrupted: Component data lost. 01637_ K-01 Serf collects debris. 01643_ Assault Rifle destroyed. 01645_ K-01 Serf collects debris. 01646_ Com. Wheel destroyed. Map ----- +----------------------------------------------------+ | ????????????????????????????????????????????? | | ????????????????????????????????????????????? | | ????????????????????????????????????????????? | | ????????????????????????????????????????????? | | ????????????????????????????????????????????? | | ????????????????????????????????????????????? | | ????????????????????????????????????????????? | | ????????????????????????????????????????????? | | ????????????????????????????????????????????? | | ????????????????????????????????????????????? | | ????????????????#!??????????????????????????? | | ????????????????#%??????????????????????????? | | ????????????#####!###??#######??????????????? | | ???????????## ## ##?# ???????????????? | | ####???????# % #?# ????????????????? | | # ???????# % #?# #?????????????????? | | # ???????# % ??# #?????????????????? | | # ?????# ?## ##????????????????? | | # """#?????# ### ### ###??????????????? | | # """#??????# ### ## ##?????????????? | | # """#?????## ### %##????????????? | | # ???#### # [* ##???????????? | | ? ????# # # ####????????? | | ?# #????# # ##### # [ !! !#????????? | | ?# #?#### k ### #????????? | | ## ### @ ##?# ######???? | | # ### #??# #???? | | ## #??###### #???? | | # # d ##???????# #???? | | # d ### # ##????????# #???? | | ## # #??### ###???????### ##??? | | ### # ##????# #????????## ##?? | | #?## ###?????# #???????## #?? | | #?# # # #????????# #??????## #?? | | ## #### #???????# ######## ##?? | | ?# ##?? #??????# # ##??? | | #?## ##??? #??????########### ## #???? | | ##???####???# #????????????????##### #???? | | ?????????????# #???????????????????## #???? | | ?????????????? ????????????????#### ##??? | | ???????????????????????????????#### #??? | | ???????????????????????????????# #?? | | ???????????????????????????????# #?? | | ???????????????????????????????###### #?? | | ????????????????????????????????????#######?? | | ????????????????????????????????????????????? | | ????????????????????????????????????????????? | | | | | | | +----------------------------------------------------+ Best States ------------- Heat Dissipation 39 Energy Generation 14 Energy Capacity 250 Matter Stores 300 Matter Capacity 300 Sight Range 16 Terrain Scan Density 10 Evasion (%) 40 Recoil Reduction 2 Item Schematics ----------------- None Robot Schematics ------------------ None Fabricated ------------ Nothing Alien Tech Used ----------------- None Achievements -------------- None Challenges ------------ None Game ------ Seed ImpactXenonAmplifier Manual? 0 Play Time 00:09:31 Cumulative 820.2 hours Start 2023.07.24 @ 00:18:26 End 2023.07.24 @ 00:25:32 Sessions 1 Manual Loads 0 Difficulty Rogue Special Mode None Game No. 711 Rogue 711 Adventurer 0 Explorer 0 Win Type - Total 40 Types 14/7/8/1/1/1/6/1/1 Lore% 93 Gallery% 96 Achievement% 82 Wizard Run 0 Options --------- ASCII 0 Keyboard 0 Movement Mouse Keybinds 1 Fullscreen 2 Font 24/Smallcaps Map View 76x50 Tactical HUD 1 Map Filters NONE Filters NONE Steam 1 RUN: a29ba3ef-f60e-482e-a222-6683b702d238